fUSD/lending_fUSD_20240618
["ID","MTS","AMOUNT","RATE_DAILY","PERIOD"]
[329800794,1718681457148,-565.747237,0.00021917,2]
[329800795,1718681457158,-565.747237,0.00021917,2]
[329800796,1718681457168,-565.747237,0.00021917,2]
[329800797,1718681457178,-565.747237,0.00021917,2]
[329800798,1718681457188,-500.0,0.00021917,2]
[329800799,1718681457197,-565.747237,0.00021917,2]
[329800800,1718681457208,-428.02940712,0.00021917,2]
[329800801,1718681457218,-565.747237,0.00021917,2]
[329800802,1718681457227,-565.747237,0.00021917,2]
[329800803,1718681457237,-565.747237,0.00021917,2]
[329800804,1718681457247,-565.747237,0.00021917,2]
[329800805,1718681457484,-580.85,0.00021917,2]
[329800806,1718681457494,-500.0,0.00021917,2]
[329800807,1718681457504,-500.0,0.00021917,2]
[329800809,1718681457513,-500.0,0.00021917,2]
[329800810,1718681457523,-583.03026679,0.00021917,2]
[329800811,1718681457533,-533.10535948,0.00021917,2]
[329800812,1718681457542,-500.0,0.00021917,2]
[329800813,1718681457552,-500.0,0.00021917,2]
[329800814,1718681457563,-500.0,0.00021917,2]
[329800815,1718681457573,-1514.51,0.00021917,2]
[329800816,1718681457582,-151.0,0.00021917,2]
[329800817,1718681457592,-500.0,0.00021917,2]
[329800818,1718681457602,-500.0,0.00021917,2]
[329800819,1718681457612,-500.0,0.00021917,2]
[329800820,1718681457621,-151.0,0.00021917,2]
[329800821,1718681457631,-151.0,0.00021917,2]
[329800822,1718681457640,-151.0,0.00021917,2]
[329800823,1718681457650,-513.60402908,0.00021917,2]
[329800824,1718681457660,-151.0,0.00021917,2]
[329800825,1718681457670,-500.0,0.00021917,2]
[329800826,1718681457680,-500.0,0.00021917,2]
[329800827,1718681457689,-500.0,0.00021917,2]
[329800828,1718681457700,-713.68,0.00021917,2]
[329800829,1718681457711,-151.0,0.00021917,2]
[329800830,1718681457720,-151.0,0.00021917,2]
[329800831,1718681457730,-151.0,0.00021917,2]
[329800832,1718681457740,-151.0,0.00021917,2]
[329800833,1718681457750,-151.0,0.00021917,2]
[329800834,1718681457759,-500.0,0.00021917,2]
[329800835,1718681457770,-539.19572835,0.00021917,2]
[329800836,1718681457780,-500.0,0.00021917,2]
[329800837,1718681457790,-500.0,0.00021917,2]
[329800838,1718681457801,-500.0,0.00021917,2]
[329800839,1718681457811,-500.0,0.00021917,2]
[329800840,1718681457820,-984.36,0.00021917,2]
[329800841,1718681457830,-500.0,0.00021917,2]
[329800842,1718681457840,-500.0,0.00021917,2]
[329800843,1718681457850,-500.0,0.00021917,2]
[329800844,1718681457859,-629.08,0.00021917,2]
[329800845,1718681457869,-151.0,0.00021917,2]
[329800846,1718681457879,-151.0,0.00021917,2]
[329800847,1718681457889,-500.0,0.00021917,2]
[329800848,1718681457899,-151.0,0.00021917,2]
[329800849,1718681457910,-500.0,0.00021917,2]
[329800850,1718681457921,-500.0,0.00021917,2]
[329800851,1718681457930,-151.0,0.00021917,2]
[329800852,1718681457939,-500.0,0.00021917,2]
[329800853,1718681457949,-151.0,0.00021917,2]
[329800854,1718681457960,-500.0,0.00021917,2]
[329800855,1718681457970,-526.34,0.00021917,2]
[329800856,1718681457979,-1229.77,0.00021917,2]
[329800857,1718681457992,-151.0,0.00021917,2]
[329800858,1718681458002,-151.0,0.00021917,2]
[329800859,1718681458011,-151.0,0.00021917,2]
[329800860,1718681458021,-151.0,0.00021917,2]
[329800861,1718681458032,-151.0,0.00021917,2]
[329800862,1718681458042,-509.62381921,0.00021917,2]
[329800863,1718681458051,-497.22639824,0.00021917,2]
[329800864,1718681458061,-500.0,0.00021917,2]
[329800865,1718681458071,-500.0,0.00021917,2]
[329800867,1718681458081,-151.663499,0.00021917,2]
[329800868,1718681458090,-763.99,0.00021917,2]
[329800869,1718681458100,-500.0,0.00021917,2]
[329800870,1718681458110,-652.59,0.00021917,2]
[329800871,1718681458120,-526.53235766,0.00021917,2]
[329800872,1718681458129,-564.62,0.00021917,2]
[329800873,1718681458139,-500.0,0.00021917,2]
[329800874,1718681458149,-581.55,0.00021917,2]
[329800875,1718681458159,-1417.85,0.00021917,2]
[329800876,1718681458169,-500.0,0.00021917,2]
[329800877,1718681458178,-690.47,0.00021917,2]
[329800878,1718681458188,-500.0,0.00021917,2]
[329800879,1718681458197,-500.0,0.00021917,2]
[329800880,1718681458207,-500.0,0.00021917,2]
[329800881,1718681458218,-500.0,0.00021917,2]
[329800882,1718681458227,-500.0,0.00021917,2]
[329800883,1718681458237,-500.0,0.00021917,2]
[329800884,1718681458246,-500.0,0.00021917,2]
[329800885,1718681458258,-504.91646924,0.00021917,2]
[329800886,1718681458267,-1156.98,0.00021917,2]
[329800887,1718681458276,-151.0,0.00021917,2]
[329800888,1718681458286,-153.219722,0.00021917,2]
[329800889,1718681458295,-500.0,0.00021917,2]
[329800890,1718681458304,-151.0,0.00021917,2]
[329800891,1718681458314,-500.0,0.00021917,2]
[329800892,1718681458323,-151.0,0.00021917,2]
[329800893,1718681458333,-151.0,0.00021917,2]
[329800894,1718681458343,-151.0,0.00021917,2]
[329800895,1718681458352,-642.74,0.00021917,2]
[329800897,1718681458361,-1840.43,0.00021917,2]
[329800898,1718681458371,-151.0,0.00021917,2]
[329800899,1718681458380,-500.0,0.00021917,2]
[329800900,1718681458389,-151.0,0.00021917,2]
[329800901,1718681458399,-151.0,0.00021917,2]
[329800902,1718681458408,-151.0,0.00021917,2]
[329800903,1718681458417,-151.0,0.00021917,2]
[329800904,1718681458426,-151.0,0.00021917,2]
[329800905,1718681458436,-627.11816863,0.00021917,2]
[329800906,1718681458445,-164.235567,0.00021917,2]
[329800907,1718681458454,-500.0,0.00021917,2]
[329800908,1718681458465,-527.43038532,0.00021917,2]
[329800909,1718681458475,-989.02,0.00021917,2]
[329800910,1718681458484,-151.0,0.00021917,2]
[329800911,1718681458493,-151.0,0.00021917,2]
[329800912,1718681458504,-500.0,0.00021917,2]
[329800913,1718681458513,-151.0,0.00021917,2]
[329800914,1718681458523,-500.0,0.00021917,2]
[329800915,1718681458532,-500.0,0.00021917,2]
[329800916,1718681458542,-159.003903,0.00021917,2]
[329800917,1718681458551,-500.0,0.00021917,2]
[329800918,1718681458561,-2346.34,0.00021917,2]
[329800919,1718681458571,-2144.93,0.00021917,2]
[329800920,1718681458580,-500.0,0.00021917,2]
[329800921,1718681458590,-1014.9,0.00021917,2]
[329800922,1718681458599,-518.1359302,0.00021917,2]
[329800923,1718681458609,-727.63,0.00021917,2]
[329800924,1718681458618,-500.0,0.00021917,2]
[329800925,1718681458628,-12997.9,0.00021917,2]
[329800927,1718681458637,-1600.69,0.00021917,2]
[329800928,1718681458647,-805.09,0.00021917,2]
[329800929,1718681458657,-151.865876,0.00021917,2]
[329800930,1718681458666,-923.46,0.00021917,2]
[329800931,1718681458676,-500.0,0.00021917,2]
[329800932,1718681458686,-500.0,0.00021917,2]
[329800933,1718681458695,-1715.81,0.00021917,2]
[329800934,1718681458704,-3332.05,0.00021917,2]
[329800935,1718681458716,-500.0,0.00021917,2]
[329800936,1718681458726,-501.68,0.00021917,2]
[329800937,1718681458735,-4431.97,0.00021917,2]
[329800938,1718681458745,-500.0,0.00021917,2]
[329800939,1718681458754,-151.0,0.00021917,2]
[329800940,1718681458764,-151.0,0.00021917,2]
[329800941,1718681458773,-500.0,0.00021917,2]
[329800942,1718681458783,-151.0,0.00021917,2]
[329800943,1718681458793,-286.136787,0.00021917,2]
[329800944,1718681458803,-500.0,0.00021917,2]
[329800945,1718681458813,-375.06904925,0.00021917,2]
[329800946,1718681458822,-24362.01,0.00021917,2]
[329800947,1718681458831,-500.0,0.00021917,2]
[329800948,1718681458840,-515.64031297,0.00021917,2]
[329800949,1718681458849,-991.93,0.00021917,2]
[329800950,1718681458858,-2887.98,0.00021917,2]
[329800951,1718681458868,-1151.34,0.00021917,2]
[329800952,1718681458878,-500.0,0.00021917,2]
[329800953,1718681458887,-265.555766,0.00021917,2]
[329800954,1718681458897,-569.99153052,0.00021917,2]
[329800955,1718681458910,-151.820475,0.00021917,2]
[329800957,1718681458924,-265.555766,0.00021917,2]
[329800958,1718681458933,-265.555766,0.00021917,2]
[329800959,1718681458943,-265.555766,0.00021917,2]
[329800960,1718681458955,-500.0,0.00021917,2]
[329800961,1718681458967,-265.555766,0.00021917,2]
[329800962,1718681458976,-500.0,0.00021917,2]
[329800963,1718681458986,-500.0,0.00021917,2]
[329800964,1718681458996,-636.57,0.00021917,2]
[329800965,1718681459006,-265.555766,0.00021917,2]
[329800966,1718681459016,-265.555766,0.00021917,2]
[329800967,1718681459026,-500.0,0.00021917,2]
[329800968,1718681459035,-265.555766,0.00021917,2]
[329800969,1718681459045,-500.0,0.00021917,2]
[329800970,1718681459054,-265.555766,0.00021917,2]
[329800971,1718681459063,-12476.83,0.00021917,2]
[329800972,1718681459073,-1253.91,0.00021917,2]
[329800973,1718681459082,-265.555766,0.00021917,2]
[329800974,1718681459092,-151.0,0.00021917,2]
[329800975,1718681459101,-151.0,0.00021917,2]
[329800976,1718681459110,-156.453609,0.00021917,2]
[329800977,1718681459120,-1389.7,0.00021917,2]
[329800978,1718681459129,-500.0,0.00021917,2]
[329800979,1718681459139,-384.01242845,0.00021917,2]
[329800980,1718681459148,-884.17,0.00021917,2]
[329800981,1718681459157,-730.65,0.00021917,2]
[329800982,1718681459167,-537.22,0.00021917,2]
[329800983,1718681459176,-618.36078927,0.00021917,2]
[329800984,1718681459186,-3571.38,0.00021917,2]
[329800986,1718681459195,-500.0,0.00021917,2]
[329800987,1718681459204,-500.0,0.00021917,2]
[329800988,1718681459216,-500.0,0.00021917,2]
[329800989,1718681459225,-846.91,0.00021917,2]
[329800990,1718681459235,-3572.44,0.00021917,2]
[329800991,1718681459244,-151.0,0.00021917,2]
[329800992,1718681459254,-1025.26,0.00021917,2]
[329800993,1718681459264,-151.0,0.00021917,2]
[329800994,1718681459283,-155.19139,0.00021917,2]
[329800995,1718681459294,-500.0,0.00021917,2]
[329800996,1718681459303,-500.0,0.00021917,2]
[329800997,1718681459313,-500.0,0.00021917,2]
[329800998,1718681459323,-500.0,0.00021917,2]
[329800999,1718681459333,-500.0,0.00021917,2]
[329801000,1718681459343,-500.0,0.00021917,2]
[329801001,1718681459353,-500.0,0.00021917,2]
[329801002,1718681459363,-2630.04,0.00021917,2]
[329801003,1718681459372,-500.0,0.00021917,2]
[329801004,1718681459382,-527.30421161,0.00021917,2]
[329801005,1718681459392,-716.52,0.00021917,2]
[329801006,1718681459402,-1644.25,0.00021917,2]
[329801007,1718681459412,-500.0,0.00021917,2]
[329801008,1718681459422,-500.0,0.00021917,2]
[329801009,1718681459431,-500.0,0.00021917,2]
[329801010,1718681459441,-500.0,0.00021917,2]
[329801011,1718681459451,-151.941341,0.00021917,2]
[329801012,1718681459462,-905.16,0.00021917,2]
[329801013,1718681459474,-25492.53,0.00021917,2]
[329801014,1718681459484,-2424.56,0.00021917,2]
[329801015,1718681459493,-500.0,0.00021917,2]
[329801016,1718681459502,-500.0,0.00021917,2]
[329801017,1718681459511,-9908.85,0.00021917,2]
[329801018,1718681459521,-500.0,0.00021917,2]
[329801019,1718681459530,-500.0,0.00021917,2]
[329801020,1718681459540,-501.67253682,0.00021917,2]
[329801021,1718681459550,-3677.21,0.00021917,2]
[329801023,1718681459559,-500.0,0.00021917,2]
[329801024,1718681459569,-500.0,0.00021917,2]
[329801025,1718681459579,-3749.36,0.00021917,2]
[329801026,1718681459588,-5501.62,0.00021917,2]
[329801027,1718681459597,-602.04,0.00021917,2]
[329801028,1718681459607,-4783.56,0.00021917,2]
[329801029,1718681459616,-1005.59,0.00021917,2]
[329801030,1718681459626,-500.0,0.00021917,2]
[329801031,1718681459635,-1709.27,0.00021917,2]
[329801032,1718681459645,-1058.21,0.00021917,2]
[329801033,1718681459654,-500.0,0.00021917,2]
[329801034,1718681459664,-525.37029807,0.00021917,2]
[329801035,1718681459674,-664.78,0.00021917,2]
[329801036,1718681459683,-3362.12,0.00021917,2]
[329801037,1718681459693,-500.0,0.00021917,2]
[329801038,1718681459703,-500.0,0.00021917,2]
[329801039,1718681459714,-6027.09,0.00021917,2]
[329801040,1718681459723,-749.07,0.00021917,2]
[329801041,1718681459733,-500.0,0.00021917,2]
[329801042,1718681459742,-500.0,0.00021917,2]
[329801043,1718681459751,-500.0,0.00021917,2]
[329801044,1718681459761,-1623.98,0.00021917,2]
[329801045,1718681459771,-151.0,0.00021917,2]
[329801046,1718681459780,-500.0,0.00021917,2]
[329801048,1718681459789,-151.0,0.00021917,2]
[329801049,1718681459799,-151.0,0.00021917,2]
[329801050,1718681459808,-540.31,0.00021917,2]
[329801051,1718681459818,-151.0,0.00021917,2]
[329801052,1718681459828,-292.876204,0.00021917,2]
[329801053,1718681459837,-500.0,0.00021917,2]
[329801054,1718681459847,-500.0,0.00021917,2]
[329801055,1718681459857,-500.0,0.00021917,2]
[329801056,1718681459867,-5280.03,0.00021917,2]
[329801057,1718681459877,-23799.23,0.00021917,2]
[329801058,1718681459886,-635.09,0.00021917,2]
[329801059,1718681459896,-4609.9,0.00021917,2]
[329801060,1718681459915,-500.0,0.00021917,2]
[329801061,1718681459925,-1537.4,0.00021917,2]
[329801062,1718681459935,-151.0,0.00021917,2]
[329801063,1718681459946,-500.0,0.00021917,2]
[329801064,1718681459956,-500.0,0.00021917,2]
[329801065,1718681459967,-1799.86,0.00021917,2]
[329801066,1718681459977,-1856.21,0.00021917,2]
[329801067,1718681459986,-500.0,0.00021917,2]
[329801068,1718681459997,-500.0,0.00021917,2]
[329801069,1718681460007,-500.0,0.00021917,2]
[329801070,1718681460017,-152.49130188,0.00021917,2]
[329801071,1718681460027,-500.0,0.00021917,2]
[329801072,1718681460037,-897.04,0.00021917,2]
[329801073,1718681460047,-151.0,0.00021917,2]
[329801074,1718681460057,-157.8306,0.00021917,2]
[329801075,1718681460067,-500.0,0.00021917,2]
[329801076,1718681460076,-500.0,0.00021917,2]
[329801077,1718681460086,-500.0,0.00021917,2]
[329801078,1718681460097,-152.050386,0.00021917,2]
[329801080,1718681460107,-933.87,0.00021917,2]
[329801081,1718681460117,-711.42,0.00021917,2]
[329801082,1718681460126,-500.0,0.00021917,2]
[329801083,1718681460136,-500.0,0.00021917,2]
[329801084,1718681460145,-500.0,0.00021917,2]
[329801085,1718681460155,-4001.42,0.00021917,2]
[329801086,1718681460165,-1098.29,0.00021917,2]
[329801087,1718681460175,-3114.97,0.00021917,2]
[329801088,1718681460184,-500.0,0.00021917,2]
[329801089,1718681460194,-500.0,0.00021917,2]
[329801090,1718681460204,-1358.76,0.00021917,2]
[329801091,1718681460215,-500.0,0.00021917,2]
[329801092,1718681460224,-538.43793594,0.00021917,2]
[329801093,1718681460234,-500.0,0.00021917,2]
[329801094,1718681460243,-151.0,0.00021917,2]
[329801095,1718681460253,-151.0,0.00021917,2]
[329801096,1718681460262,-3930.19,0.00021917,2]
[329801097,1718681460272,-500.0,0.00021917,2]
[329801098,1718681460281,-1756.14,0.00021917,2]
[329801099,1718681460291,-500.0,0.00021917,2]
[329801100,1718681460301,-500.0,0.00021917,2]
[329801101,1718681460312,-1127.35,0.00021917,2]
[329801102,1718681460321,-151.0,0.00021917,2]
[329801103,1718681460332,-2723.38,0.00021917,2]
[329801104,1718681460342,-151.0,0.00021917,2]
[329801105,1718681460352,-500.0,0.00021917,2]
[329801106,1718681460362,-282.55506073,0.00021917,2]
[329801107,1718681460371,-159.667668,0.00021917,2]
[329801108,1718681460381,-502.25722569,0.00021917,2]
[329801109,1718681460391,-500.0,0.00021917,2]
[329801110,1718681460401,-151.0,0.00021917,2]
[329801112,1718681460411,-151.0,0.00021917,2]
[329801113,1718681460421,-2364.33,0.00021917,2]
[329801114,1718681460430,-151.0,0.00021917,2]
[329801115,1718681460440,-500.0,0.00021917,2]
[329801116,1718681460450,-151.0,0.00021917,2]
[329801117,1718681460460,-151.0,0.00021917,2]
[329801118,1718681460472,-151.0,0.00021917,2]
[329801119,1718681460482,-2806.9,0.00021917,2]
[329801120,1718681460492,-151.0,0.00021917,2]
[329801121,1718681460502,-500.0,0.00021917,2]
[329801122,1718681460512,-172.884649,0.00021917,2]
[329801123,1718681460523,-500.0,0.00021917,2]
[329801124,1718681460533,-500.0,0.00021917,2]
[329801125,1718681460546,-832.65,0.00021917,2]
[329801126,1718681460557,-1008.97,0.00021917,2]
[329801127,1718681460568,-500.0,0.00021917,2]
[329801128,1718681460579,-1221.8,0.00021917,2]
[329801129,1718681460591,-151.443993,0.00021917,2]
[329801130,1718681460602,-151.443993,0.00021917,2]
[329801131,1718681460612,-151.820019,0.00021917,2]
[329801132,1718681460623,-151.443993,0.00021917,2]
[329801133,1718681460633,-500.0,0.00021917,2]
[329801134,1718681460646,-151.443993,0.00021917,2]
[329801135,1718681460656,-151.443993,0.00021917,2]
[329801136,1718681460666,-151.443993,0.00021917,2]
[329801137,1718681460676,-1079.44,0.00021917,2]
[329801138,1718681460686,-999.45,0.00021917,2]
[329801139,1718681460695,-1837.06,0.00021917,2]
[329801140,1718681460705,-151.443993,0.00021917,2]
[329801141,1718681460718,-151.443993,0.00021917,2]
[329801142,1718681460727,-500.0,0.00021917,2]
[329801143,1718681460743,-151.443993,0.00021917,2]
[329801144,1718681460753,-500.0,0.00021917,2]
[329801145,1718681460764,-500.0,0.00021917,2]
[329801146,1718681460773,-151.443993,0.00021917,2]
[329801147,1718681460783,-151.443993,0.00021917,2]
[329801148,1718681460792,-151.443993,0.00021917,2]
[329801149,1718681460801,-5417.32,0.00021917,2]
[329801150,1718681460811,-5142.61,0.00021917,2]
[329801151,1718681460820,-500.0,0.00021917,2]
[329801153,1718681460830,-500.0,0.00021917,2]
[329801154,1718681460840,-500.0,0.00021917,2]
[329801155,1718681460849,-535.84822608,0.00021917,2]
[329801156,1718681460858,-500.0,0.00021917,2]
[329801157,1718681460868,-500.0,0.00021917,2]
[329801158,1718681460878,-500.0,0.00021917,2]
[329801159,1718681460887,-500.0,0.00021917,2]
[329801160,1718681460897,-500.0,0.00021917,2]
[329801161,1718681460912,-500.0,0.00021917,2]
[329801162,1718681460929,-633.3,0.00021917,2]
[329801163,1718681460939,-500.0,0.00021917,2]
[329801164,1718681460948,-557.74056126,0.00021917,2]
[329801165,1718681460964,-500.0,0.00021917,2]
[329801166,1718681460973,-500.0,0.00021917,2]
[329801167,1718681460983,-601.14,0.00021917,2]
[329801168,1718681460993,-500.0,0.00021917,2]
[329801169,1718681461003,-220.472523,0.00021917,2]
[329801170,1718681461014,-220.472523,0.00021917,2]
[329801171,1718681461023,-500.0,0.00021917,2]
[329801172,1718681461033,-220.472523,0.00021917,2]
[329801173,1718681461042,-220.472523,0.00021917,2]
[329801174,1718681461051,-500.0,0.00021917,2]
[329801175,1718681461061,-220.472523,0.00021917,2]
[329801176,1718681461071,-750.7,0.00021917,2]
[329801177,1718681461080,-291.65271152,0.00021917,2]
[329801178,1718681461091,-500.0,0.00021917,2]
[329801179,1718681461101,-220.472523,0.00021917,2]
[329801180,1718681461110,-220.472523,0.00021917,2]
[329801181,1718681461120,-220.472523,0.00021917,2]
[329801182,1718681461130,-2523.67,0.00021917,2]
[329801183,1718681461139,-1132.03,0.00021917,2]
[329801184,1718681461151,-220.472523,0.00021917,2]
[329801185,1718681461161,-220.472523,0.00021917,2]
[329801186,1718681461170,-1742.59,0.00021917,2]
[329801187,1718681461180,-873.44,0.00021917,2]
[329801188,1718681461189,-1014.84,0.00021917,2]
[329801189,1718681461455,-500.0,0.00021917,2]
[329801190,1718681461467,-3365.11,0.00021917,2]
[329801191,1718681461477,-7231.03,0.00021917,2]
[329801192,1718681461486,-500.0,0.00021917,2]
[329801193,1718681461495,-151.0,0.00021917,2]
[329801194,1718681461504,-500.0,0.00021917,2]
[329801195,1718681461514,-151.0,0.00021917,2]
[329801196,1718681461523,-151.0,0.00021917,2]
[329801197,1718681461532,-500.0,0.00021917,2]
[329801198,1718681461542,-151.0,0.00021917,2]
[329801199,1718681461552,-1138.17,0.00021917,2]
[329801200,1718681461561,-151.0,0.00021917,2]
[329801201,1718681461571,-2618.15,0.00021917,2]
[329801202,1718681461580,-151.0,0.00021917,2]
[329801203,1718681461588,-500.0,0.00021917,2]
[329801204,1718681461598,-500.0,0.00021917,2]
[329801205,1718681461606,-514.76475279,0.00021917,2]
[329801206,1718681461615,-1658.68,0.00021917,2]
[329801207,1718681461624,-1103.93,0.00021917,2]
[329801208,1718681461633,-151.0,0.00021917,2]
[329801209,1718681461643,-939.72,0.00021917,2]
[329801210,1718681461652,-500.0,0.00021917,2]
[329801211,1718681461661,-151.0,0.00021917,2]
[329801212,1718681461670,-500.0,0.00021917,2]
[329801213,1718681461679,-151.0,0.00021917,2]
[329801214,1718681461687,-151.0,0.00021917,2]
[329801215,1718681461696,-151.0,0.00021917,2]
[329801216,1718681461706,-500.0,0.00021917,2]
[329801217,1718681461718,-151.0,0.00021917,2]
[329801218,1718681461727,-500.0,0.00021917,2]
[329801219,1718681461737,-897.31,0.00021917,2]
[329801220,1718681461746,-1822.65,0.00021917,2]
[329801221,1718681461755,-1235.02,0.00021917,2]
[329801222,1718681461765,-1706.85,0.00021917,2]
[329801223,1718681461774,-500.0,0.00021917,2]
[329801224,1718681461783,-500.0,0.00021917,2]
[329801225,1718681461793,-151.0,0.00021917,2]
[329801226,1718681461802,-500.0,0.00021917,2]
[329801227,1718681461811,-151.0,0.00021917,2]
[329801228,1718681461821,-500.0,0.00021917,2]
[329801229,1718681461831,-151.0,0.00021917,2]
[329801230,1718681461840,-2995.78,0.00021917,2]
[329801231,1718681461849,-151.0,0.00021917,2]
[329801232,1718681461859,-151.0,0.00021917,2]
[329801233,1718681461868,-2900.6,0.00021917,2]
[329801234,1718681461877,-500.0,0.00021917,2]
[329801235,1718681461887,-2026.36,0.00021917,2]
[329801236,1718681461897,-500.0,0.00021917,2]
[329801237,1718681461912,-205.010906,0.00021917,2]
[329801238,1718681461921,-953.12,0.00021917,2]
[329801239,1718681461931,-500.0,0.00021917,2]
[329801240,1718681461940,-723.24,0.00021917,2]
[329801241,1718681461950,-500.0,0.00021917,2]
[329801242,1718681461962,-151.0,0.00021917,2]
[329801243,1718681461971,-500.0,0.00021917,2]
[329801244,1718681461979,-151.0,0.00021917,2]
[329801245,1718681461991,-152.352682,0.00021917,2]
[329801246,1718681462001,-500.0,0.00021917,2]
[329801247,1718681462011,-2906.81,0.00021917,2]
[329801248,1718681462021,-567.20803336,0.00021917,2]
[329801249,1718681462030,-151.0,0.00021917,2]
[329801250,1718681462040,-151.0,0.00021917,2]
[329801251,1718681462050,-2730.11,0.00021917,2]
[329801252,1718681462060,-500.0,0.00021917,2]
[329801253,1718681462069,-151.0,0.00021917,2]
[329801254,1718681462079,-151.0,0.00021917,2]
[329801255,1718681462088,-2394.02,0.00021917,2]
[329801256,1718681462098,-155.278309,0.00021917,2]
[329801257,1718681462107,-164.44780005,0.00021917,2]
[329801258,1718681462117,-1501.19,0.00021917,2]
[329801259,1718681462126,-500.0,0.00021917,2]
[329801260,1718681462135,-4011.18,0.00021917,2]
[329801261,1718681462144,-500.0,0.00021917,2]
[329801262,1718681462154,-500.0,0.00021917,2]
[329801263,1718681462164,-968.42,0.00021917,2]
[329801264,1718681462173,-504.65115742,0.00021917,2]
[329801265,1718681462183,-500.0,0.00021917,2]
[329801266,1718681462192,-500.0,0.00021917,2]
[329801267,1718681462201,-519.3419047,0.00021917,2]
[329801268,1718681462212,-500.0,0.00021917,2]
[329801269,1718681462221,-3082.31,0.00021917,2]
[329801270,1718681462231,-4813.91,0.00021917,2]
[329801271,1718681462240,-736.41,0.00021917,2]
[329801272,1718681462249,-1344.48,0.00021917,2]
[329801273,1718681462259,-500.0,0.00021917,2]
[329801274,1718681462269,-1228.32,0.00021917,2]
[329801275,1718681462279,-2895.21,0.00021917,2]
[329801276,1718681462288,-500.0,0.00021917,2]
[329801277,1718681462298,-500.0,0.00021917,2]
[329801278,1718681462307,-500.0,0.00021917,2]
[329801279,1718681462317,-5359.52,0.00021917,2]
[329801280,1718681462326,-500.0,0.00021917,2]
[329801281,1718681462335,-2242.91,0.00021917,2]
[329801282,1718681462345,-948.25,0.00021917,2]
[329801283,1718681462354,-523.08127672,0.00021917,2]
[329801284,1718681462363,-3511.38,0.00021917,2]
[329801285,1718681462373,-500.0,0.00021917,2]
[329801286,1718681462383,-1534.07,0.00021917,2]
[329801287,1718681462393,-500.0,0.00021917,2]
[329801288,1718681462402,-500.0,0.00021917,2]
[329801289,1718681462412,-6398.77,0.00021917,2]
[329801290,1718681462422,-994.64,0.00021917,2]
[329801291,1718681462432,-227.72880176,0.00021917,2]
[329801292,1718681462441,-500.0,0.00021917,2]
[329801293,1718681462451,-500.0,0.00021917,2]
[329801294,1718681462461,-1305.84,0.00021917,2]
[329801295,1718681462473,-500.0,0.00021917,2]
[329801296,1718681462485,-3263.44,0.00021917,2]
[329801297,1718681462494,-500.0,0.00021917,2]
[329801298,1718681462503,-1047.25,0.00021917,2]
[329801299,1718681462513,-932.83,0.00021917,2]
[329801300,1718681462523,-500.0,0.00021917,2]
[329801301,1718681462532,-2349.45,0.00021917,2]
[329801302,1718681462542,-1132.93,0.00021917,2]
[329801303,1718681462552,-715.84,0.00021917,2]
[329801304,1718681462562,-500.0,0.00021917,2]